[Event "*** Titled Tuesday Blitz"]
[Site "Chess.com"]
[Date "2020.10.20"]
[Round "7"]
[White "Tenamu"]
[Black "bait_or_mate"]
[Result "0-1"]
[WhiteElo "2409"]
[BlackElo "2587"]
[TimeControl "180+1"]
[EndTime "11:20:52 PDT"]
[Termination "bait_or_mate won by resignation"]

1. d4 {[%clk 0:03:00.9]} 1... Nf6 {[%clk 0:02:58.1]} 2. Nc3 {[%clk 0:03:00.2]}
2... d5 {[%clk 0:02:57.2]} 3. Bf4 {[%clk 0:02:59.4]} 3... a6 {[%clk 0:02:56]} 4.
e3 {[%clk 0:02:59.4]} 4... e6 {[%clk 0:02:56.1]} 5. a3 {[%clk 0:02:58.8]} 5...
c5 {[%clk 0:02:55.7]} 6. Nf3 {[%clk 0:02:57.6]} 6... Nc6 {[%clk 0:02:55.2]} 7.
Be2 {[%clk 0:02:57]} 7... Bd6 {[%clk 0:02:51.5]} 8. dxc5 {[%clk 0:02:56.1]} 8...
Bxc5 {[%clk 0:02:51]} 9. O-O {[%clk 0:02:55.3]} 9... O-O {[%clk 0:02:51.5]} 10.
b4 {[%clk 0:02:55.2]} 10... Bd6 {[%clk 0:02:51]} 11. Qd2 {[%clk 0:02:44.8]}
11... Bxf4 {[%clk 0:02:48.1]} 12. exf4 {[%clk 0:02:45.7]} 12... Ne4 {[%clk
0:02:38]} 13. Nxe4 {[%clk 0:02:40.5]} 13... dxe4 {[%clk 0:02:38.9]} 14. Qxd8
{[%clk 0:02:40.5]} 14... Rxd8 {[%clk 0:02:39]} 15. Ng5 {[%clk 0:02:39.7]} 15...
Nd4 {[%clk 0:02:38.1]} 16. Bd1 {[%clk 0:02:37.2]} 16... f5 {[%clk 0:02:36.5]}
17. c3 {[%clk 0:02:37]} 17... h6 {[%clk 0:02:28.8]} 18. cxd4 {[%clk 0:02:31.7]}
18... hxg5 {[%clk 0:02:28.6]} 19. fxg5 {[%clk 0:02:32.6]} 19... Rxd4 {[%clk
0:02:28.4]} 20. g3 {[%clk 0:02:33.1]} 20... Bd7 {[%clk 0:02:27.9]} 21. Bb3
{[%clk 0:02:31.9]} 21... Kf7 {[%clk 0:02:24.1]} 22. Rac1 {[%clk 0:02:28.9]}
22... Bc6 {[%clk 0:02:21.9]} 23. h4 {[%clk 0:02:26.1]} 23... Rd3 {[%clk
0:02:19.7]} 24. Bc4 {[%clk 0:02:22.9]} 24... Rd2 {[%clk 0:02:06.3]} 25. Bb3
{[%clk 0:02:13.9]} 25... Rd3 {[%clk 0:01:48.8]} 26. Bc4 {[%clk 0:02:07.1]} 26...
Rxa3 {[%clk 0:01:48.4]} 27. Rfd1 {[%clk 0:02:06.5]} 27... Ke7 {[%clk 0:01:49]}
28. h5 {[%clk 0:02:00.2]} 28... Rh8 {[%clk 0:01:46.1]} 29. Be2 {[%clk
0:01:59.7]} 29... Rb3 {[%clk 0:01:39.9]} 30. Rc4 {[%clk 0:01:55.2]} 30... Rb2
{[%clk 0:01:38.4]} 31. Re1 {[%clk 0:01:44.2]} 31... Kd6 {[%clk 0:01:31.8]} 32.
Rd4+ {[%clk 0:01:38.2]} 32... Ke5 {[%clk 0:01:20.3]} 33. Rdd1 {[%clk 0:01:30.4]}
33... Rxb4 {[%clk 0:01:14.6]} 34. f4+ {[%clk 0:01:24]} 34... exf3 {[%clk
0:01:14.5]} 35. Bxf3+ {[%clk 0:01:22.9]} 35... Be4 {[%clk 0:01:14.3]} 36. g4
{[%clk 0:01:22.8]} 36... Kf4 {[%clk 0:01:07.9]} 37. Bxe4 {[%clk 0:01:21.2]}
37... fxe4 {[%clk 0:00:26.9]} 38. Rd7 {[%clk 0:01:08.3]} 38... Kxg4 {[%clk
0:00:26.6]} 39. h6 {[%clk 0:01:07.9]} 39... gxh6 {[%clk 0:00:26]} 40. g6 {[%clk
0:01:08.2]} 40... Rg8 {[%clk 0:00:22.4]} 41. g7 {[%clk 0:01:08.2]} 41... Kg5
{[%clk 0:00:20.5]} 42. Re2 {[%clk 0:01:08.1]} 42... Kg6 {[%clk 0:00:19.8]} 43.
Kh2 {[%clk 0:01:07.7]} 43... Kh7 {[%clk 0:00:19.9]} 44. Rg2 {[%clk 0:01:05.6]}
44... a5 {[%clk 0:00:19.6]} 45. Re7 {[%clk 0:00:59.4]} 45... a4 {[%clk
0:00:19.1]} 46. Rxe6 {[%clk 0:00:59.2]} 46... Rxg7 {[%clk 0:00:18.9]} 47. Ra2
{[%clk 0:00:56]} 47... b5 {[%clk 0:00:18.8]} 48. Re5 {[%clk 0:00:55.5]} 48...
Rb3 {[%clk 0:00:16.9]} 49. Rxe4 {[%clk 0:00:54.7]} 49... a3 {[%clk 0:00:16.7]}
50. Re6 {[%clk 0:00:50.8]} 50... Rb2+ {[%clk 0:00:14.9]} 51. Rxb2 {[%clk
0:00:49.2]} 51... axb2 {[%clk 0:00:15.8]} 52. Re1 {[%clk 0:00:49.1]} 52... Rc7
{[%clk 0:00:15.9]} 53. Rb1 {[%clk 0:00:47.7]} 53... Rc2+ {[%clk 0:00:16]} 54.
Kg3 {[%clk 0:00:47.5]} 54... Kg6 {[%clk 0:00:16.9]} 55. Kg4 {[%clk 0:00:47.8]}
55... h5+ {[%clk 0:00:16.9]} 56. Kf4 {[%clk 0:00:47.6]} 56... Kf6 {[%clk
0:00:16.6]} 57. Ke4 {[%clk 0:00:46.6]} 57... Kg5 {[%clk 0:00:15.4]} 58. Kd3
{[%clk 0:00:46.6]} 58... Rg2 {[%clk 0:00:15.4]} 59. Ke3 {[%clk 0:00:46.2]} 59...
h4 {[%clk 0:00:15]} 60. Kf3 {[%clk 0:00:46.6]} 60... Rc2 {[%clk 0:00:15.2]} 61.
Ke3 {[%clk 0:00:41.9]} 61... h3 {[%clk 0:00:15.2]} 62. Kf3 {[%clk 0:00:41.7]}
62... h2 {[%clk 0:00:14.7]} 63. Ke3 {[%clk 0:00:40.1]} 63... Rc1 {[%clk
0:00:14.4]} 64. Rxb2 {[%clk 0:00:39.2]} 64... h1=Q {[%clk 0:00:13.8]} 65. Rb4
{[%clk 0:00:40.1]} 65... Qh3+ {[%clk 0:00:11.2]} 66. Kd4 {[%clk 0:00:40.1]}
66... Qc3+ {[%clk 0:00:10.8]} 0-1

[Event "*** Titled Tuesday Blitz"]
[Site "Chess.com"]
[Date "2020.10.20"]
[Round "7"]
[White "Fusikk"]
[Black "nrvisakh"]
[Result "1-0"]
[WhiteElo "2544"]
[BlackElo "2698"]
[TimeControl "180+1"]
[EndTime "11:20:55 PDT"]
[Termination "Fusikk won by resignation"]

1. e4 {[%clk 0:03:00.9]} 1... c5 {[%clk 0:02:59.7]} 2. Nc3 {[%clk 0:03:00.2]}
2... Nc6 {[%clk 0:02:59.1]} 3. f4 {[%clk 0:03:00]} 3... g6 {[%clk 0:02:53.2]} 4.
Bb5 {[%clk 0:03:00]} 4... Bg7 {[%clk 0:02:52.9]} 5. Nf3 {[%clk 0:02:59.7]} 5...
Nd4 {[%clk 0:02:52]} 6. a4 {[%clk 0:02:59.8]} 6... e6 {[%clk 0:02:50.9]} 7. e5
{[%clk 0:02:54]} 7... Ne7 {[%clk 0:02:43.9]} 8. Nxd4 {[%clk 0:02:52.3]} 8...
cxd4 {[%clk 0:02:43.6]} 9. Ne4 {[%clk 0:02:52.2]} 9... O-O {[%clk 0:02:43.6]}
10. Nd6 {[%clk 0:02:49.5]} 10... Nf5 {[%clk 0:02:42.7]} 11. Nxf5 {[%clk
0:02:49.1]} 11... gxf5 {[%clk 0:02:42.2]} 12. O-O {[%clk 0:02:46.3]} 12... d6
{[%clk 0:02:39.5]} 13. exd6 {[%clk 0:02:44.8]} 13... Qxd6 {[%clk 0:02:40.4]} 14.
Ra3 {[%clk 0:02:42.9]} 14... a6 {[%clk 0:02:24.7]} 15. Be2 {[%clk 0:02:38.8]}
15... Bd7 {[%clk 0:02:22.2]} 16. Rg3 {[%clk 0:02:07.8]} 16... Bxa4 {[%clk
0:02:18.9]} 17. Bd3 {[%clk 0:02:07.6]} 17... Bb5 {[%clk 0:02:07.6]} 18. Qh5
{[%clk 0:01:59.3]} 18... f6 {[%clk 0:02:02.9]} 19. Rh3 {[%clk 0:01:34.8]} 19...
Bxd3 {[%clk 0:02:00.2]} 20. Qxh7+ {[%clk 0:01:33.9]} 20... Kf7 {[%clk 0:02:00]}
21. Qh5+ {[%clk 0:01:29.1]} 21... Ke7 {[%clk 0:01:59.1]} 22. Rxd3 {[%clk
0:01:29.3]} 22... Rh8 {[%clk 0:01:58.8]} 23. Qf3 {[%clk 0:01:27.4]} 23... Qc6
{[%clk 0:01:55.4]} 24. Qxc6 {[%clk 0:01:26.3]} 24... bxc6 {[%clk 0:01:55.2]} 25.
Rxd4 {[%clk 0:01:27.2]} 25... Rhd8 {[%clk 0:01:48.2]} 26. Rc4 {[%clk 0:01:24.4]}
26... Kd7 {[%clk 0:01:46.3]} 27. d3 {[%clk 0:01:22.6]} 27... Bf8 {[%clk
0:01:46.1]} 28. b3 {[%clk 0:01:22.3]} 28... Bd6 {[%clk 0:01:43.2]} 29. Bd2
{[%clk 0:01:21.5]} 29... Re8 {[%clk 0:01:18.7]} 30. g3 {[%clk 0:01:18.3]} 30...
Kc7 {[%clk 0:01:18.2]} 31. Kg2 {[%clk 0:01:18]} 31... Kb7 {[%clk 0:01:18.2]} 32.
Bc3 {[%clk 0:01:15.1]} 32... Rf8 {[%clk 0:01:16]} 33. Re1 {[%clk 0:01:14.6]}
33... Rae8 {[%clk 0:01:14.9]} 34. Bb4 {[%clk 0:01:06.7]} 34... Bxb4 {[%clk
0:01:09.3]} 35. Rxb4+ {[%clk 0:01:07.6]} 35... Kc7 {[%clk 0:01:06.8]} 36. Ra1
{[%clk 0:01:07.5]} 36... Ra8 {[%clk 0:01:04.3]} 37. Ra5 {[%clk 0:01:07.9]} 37...
Rfd8 {[%clk 0:00:58.7]} 38. Rc4 {[%clk 0:01:06.1]} 38... Rd5 {[%clk 0:00:57.2]}
39. Ra1 {[%clk 0:00:57.2]} 39... e5 {[%clk 0:00:50.8]} 40. fxe5 {[%clk
0:00:56.1]} 40... fxe5 {[%clk 0:00:50.5]} 41. Rf1 {[%clk 0:00:57]} 41... Rf8
{[%clk 0:00:49.7]} 42. Ra4 {[%clk 0:00:57.2]} 42... a5 {[%clk 0:00:49.4]} 43.
Rh4 {[%clk 0:00:56.8]} 43... Kb6 {[%clk 0:00:46.3]} 44. Rh5 {[%clk 0:00:55.5]}
44... e4 {[%clk 0:00:43.4]} 45. dxe4 {[%clk 0:00:52]} 45... Rd2+ {[%clk
0:00:43.4]} 46. Rf2 {[%clk 0:00:52.3]} 46... Rxf2+ {[%clk 0:00:42.8]} 47. Kxf2
{[%clk 0:00:53.2]} 47... fxe4+ {[%clk 0:00:43.4]} 48. Ke2 {[%clk 0:00:53.3]}
48... Rf3 {[%clk 0:00:41]} 49. Re5 {[%clk 0:00:38]} 49... Rc3 {[%clk 0:00:40]}
50. Kd2 {[%clk 0:00:37.3]} 50... Rf3 {[%clk 0:00:40.1]} 51. Rxe4 {[%clk
0:00:37.2]} 51... Kb5 {[%clk 0:00:40.3]} 52. Re2 {[%clk 0:00:32.3]} 52... c5
{[%clk 0:00:38.9]} 53. Kc1 {[%clk 0:00:32.2]} 53... c4 {[%clk 0:00:37]} 54.
bxc4+ {[%clk 0:00:27.5]} 54... Kb4 {[%clk 0:00:36.2]} 55. Kb2 {[%clk 0:00:28.4]}
55... a4 {[%clk 0:00:35.9]} 56. Rg2 {[%clk 0:00:25.1]} 56... a3+ {[%clk
0:00:32.7]} 57. Ka2 {[%clk 0:00:25]} 57... Kc3 {[%clk 0:00:29]} 58. c5 {[%clk
0:00:21.4]} 58... Rf8 {[%clk 0:00:25.1]} 59. g4 {[%clk 0:00:21.2]} 59... Rb8
{[%clk 0:00:24.9]} 60. c6 {[%clk 0:00:13.2]} 60... Rb2+ {[%clk 0:00:24.4]} 61.
Kxa3 {[%clk 0:00:13.4]} 61... Rb6 {[%clk 0:00:24.3]} 62. Rg3+ {[%clk 0:00:13.4]}
62... Kc4 {[%clk 0:00:24.5]} 63. g5 {[%clk 0:00:13.2]} 63... Rxc6 {[%clk
0:00:23]} 64. g6 {[%clk 0:00:12.7]} 64... Rc8 {[%clk 0:00:23.9]} 65. g7 {[%clk
0:00:12.5]} 1-0

[Event "*** Titled Tuesday Blitz"]
[Site "Chess.com"]
[Date "2020.10.20"]
[Round "7"]
[White "QuintilianoR"]
[Black "kuban1991"]
[Result "1/2-1/2"]
[WhiteElo "2670"]
[BlackElo "2818"]
[TimeControl "180+1"]
[EndTime "11:20:56 PDT"]
[Termination "Game drawn - insufficient material"]

1. d4 {[%clk 0:03:00.9]} 1... g6 {[%clk 0:02:59.7]} 2. c4 {[%clk 0:03:00.5]}
2... Bg7 {[%clk 0:03:00.4]} 3. Nc3 {[%clk 0:03:00.7]} 3... c5 {[%clk 0:03:01.3]}
4. d5 {[%clk 0:03:00.9]} 4... Bxc3+ {[%clk 0:03:01.6]} 5. bxc3 {[%clk
0:03:01.8]} 5... f5 {[%clk 0:03:02.3]} 6. e4 {[%clk 0:03:02.3]} 6... fxe4 {[%clk
0:03:02.3]} 7. f3 {[%clk 0:03:02.4]} 7... e3 {[%clk 0:03:02.7]} 8. Bd3 {[%clk
0:02:59.2]} 8... Qa5 {[%clk 0:03:02.5]} 9. Ne2 {[%clk 0:02:57.4]} 9... d6 {[%clk
0:03:02.5]} 10. O-O {[%clk 0:02:56.4]} 10... Nd7 {[%clk 0:03:02.7]} 11. f4
{[%clk 0:02:55.5]} 11... Ngf6 {[%clk 0:03:02.6]} 12. Bxe3 {[%clk 0:02:50]} 12...
Nb6 {[%clk 0:03:02.7]} 13. Ng3 {[%clk 0:02:41.3]} 13... Qa4 {[%clk 0:02:57.1]}
14. Qe2 {[%clk 0:02:39.4]} 14... Bg4 {[%clk 0:02:55.3]} 15. Qe1 {[%clk
0:02:22.4]} 15... O-O-O {[%clk 0:02:50.7]} 16. h3 {[%clk 0:02:19.4]} 16... Bd7
{[%clk 0:02:46]} 17. Qe2 {[%clk 0:02:17.5]} 17... Rhe8 {[%clk 0:02:41.3]} 18. f5
{[%clk 0:02:14.2]} 18... Rg8 {[%clk 0:02:34.7]} 19. fxg6 {[%clk 0:02:11.4]}
19... hxg6 {[%clk 0:02:35.6]} 20. Bg5 {[%clk 0:02:09.8]} 20... Rde8 {[%clk
0:02:33.5]} 21. Rf4 {[%clk 0:01:57.5]} 21... Nh7 {[%clk 0:02:26.2]} 22. Bxe7
{[%clk 0:01:40.6]} 22... Rg7 {[%clk 0:02:25.6]} 23. Re4 {[%clk 0:01:39]} 23...
Bf5 {[%clk 0:02:02.9]} 24. Nxf5 {[%clk 0:01:36.5]} 24... gxf5 {[%clk 0:02:03.8]}
25. Re3 {[%clk 0:01:35.4]} 25... f4 {[%clk 0:02:01.2]} 26. Bf5+ {[%clk
0:01:29.5]} 26... Nd7 {[%clk 0:01:52.3]} 27. Re6 {[%clk 0:01:29.1]} 27... f3
{[%clk 0:01:49.7]} 28. Bxd6 {[%clk 0:01:20.1]} 28... Rxe6 {[%clk 0:01:31.8]} 29.
Qxe6 {[%clk 0:01:18]} 29... b6 {[%clk 0:01:31.3]} 30. Be5 {[%clk 0:01:05.1]}
30... Rxg2+ {[%clk 0:01:23.7]} 31. Kh1 {[%clk 0:01:05]} 31... Nf8 {[%clk
0:01:24.1]} 32. Qc6+ {[%clk 0:01:02.7]} 32... Qxc6 {[%clk 0:01:17.5]} 33. dxc6
{[%clk 0:01:03.6]} 33... Rg5 {[%clk 0:01:09.8]} 34. cxd7+ {[%clk 0:01:02.1]}
34... Nxd7 {[%clk 0:01:10]} 35. Bxd7+ {[%clk 0:01:02.4]} 35... Kxd7 {[%clk
0:01:10.9]} 36. Bf4 {[%clk 0:00:57.8]} 36... Rg2 {[%clk 0:01:06.2]} 37. Rd1+
{[%clk 0:00:55.8]} 37... Ke6 {[%clk 0:01:05.9]} 38. Rd2 {[%clk 0:00:52.9]} 38...
Rg7 {[%clk 0:00:54.5]} 39. Rf2 {[%clk 0:00:42]} 39... Kf5 {[%clk 0:00:54.8]} 40.
Rxf3 {[%clk 0:00:41.5]} 40... Ke4 {[%clk 0:00:55.1]} 41. Rf1 {[%clk 0:00:38.6]}
41... Kd3 {[%clk 0:00:54.6]} 42. Be5 {[%clk 0:00:35.4]} 42... Rh7 {[%clk
0:00:54.9]} 43. Kg2 {[%clk 0:00:34.7]} 43... Kxc4 {[%clk 0:00:55.6]} 44. Kg3
{[%clk 0:00:34.1]} 44... Kd5 {[%clk 0:00:54.9]} 45. Bf6 {[%clk 0:00:32.8]} 45...
b5 {[%clk 0:00:54.7]} 46. h4 {[%clk 0:00:32.3]} 46... a5 {[%clk 0:00:52.6]} 47.
Kg4 {[%clk 0:00:32.1]} 47... b4 {[%clk 0:00:51.8]} 48. h5 {[%clk 0:00:29.5]}
48... c4 {[%clk 0:00:51.8]} 49. Kg5 {[%clk 0:00:28.6]} 49... b3 {[%clk
0:00:51.8]} 50. axb3 {[%clk 0:00:28.6]} 50... cxb3 {[%clk 0:00:52.7]} 51. Ra1
{[%clk 0:00:27.4]} 51... Ra7 {[%clk 0:00:45.1]} 52. h6 {[%clk 0:00:24.5]} 52...
a4 {[%clk 0:00:42.4]} 53. c4+ {[%clk 0:00:14.1]} 53... Kxc4 {[%clk 0:00:41.9]}
54. Bb2 {[%clk 0:00:13.7]} 54... Kd3 {[%clk 0:00:38]} 55. Rc1 {[%clk 0:00:12.7]}
55... Kd2 {[%clk 0:00:31]} 56. Rc4 {[%clk 0:00:08.8]} 56... a3 {[%clk
0:00:31.4]} 57. Bxa3 {[%clk 0:00:08.6]} 57... Rxa3 {[%clk 0:00:32.3]} 58. h7
{[%clk 0:00:09.5]} 58... Ra8 {[%clk 0:00:32.1]} 59. Rb4 {[%clk 0:00:07.7]} 59...
Kc3 {[%clk 0:00:32.1]} 60. Rxb3+ {[%clk 0:00:07.5]} 60... Kxb3 {[%clk
0:00:32.1]} 61. Kg6 {[%clk 0:00:08.4]} 61... Kc4 {[%clk 0:00:32.4]} 62. Kg7
{[%clk 0:00:08.5]} 62... Kd5 {[%clk 0:00:31.9]} 63. h8=Q {[%clk 0:00:08.5]}
63... Rxh8 {[%clk 0:00:32.2]} 64. Kxh8 {[%clk 0:00:09.4]} 1/2-1/2

[Event "*** Titled Tuesday Blitz"]
[Site "Chess.com"]
[Date "2020.10.20"]
[Round "7"]
[White "ViditYT"]
[Black "DanielDardha2005"]
[Result "1-0"]
[WhiteElo "2916"]
[BlackElo "2631"]
[TimeControl "180+1"]
[EndTime "11:20:57 PDT"]
[Termination "ViditYT won by resignation"]

1. d4 {[%clk 0:03:00.9]} 1... Nf6 {[%clk 0:02:59.9]} 2. c4 {[%clk 0:03:01.4]}
2... e6 {[%clk 0:03:00]} 3. Nf3 {[%clk 0:03:01.3]} 3... Bb4+ {[%clk 0:02:57.4]}
4. Bd2 {[%clk 0:03:01.2]} 4... Qe7 {[%clk 0:02:51.9]} 5. g3 {[%clk 0:03:01]}
5... b6 {[%clk 0:02:51.3]} 6. Bg2 {[%clk 0:03:01]} 6... Bb7 {[%clk 0:02:51.8]}
7. O-O {[%clk 0:03:00.6]} 7... Bxd2 {[%clk 0:02:50.9]} 8. Qxd2 {[%clk 0:03:00]}
8... O-O {[%clk 0:02:46.2]} 9. Qf4 {[%clk 0:02:58.9]} 9... d6 {[%clk 0:02:42.8]}
10. Nc3 {[%clk 0:02:58.9]} 10... c5 {[%clk 0:02:34.7]} 11. Rad1 {[%clk
0:02:50.8]} 11... Rd8 {[%clk 0:02:08.1]} 12. d5 {[%clk 0:02:35.8]} 12... exd5
{[%clk 0:02:05.5]} 13. cxd5 {[%clk 0:02:35]} 13... a6 {[%clk 0:02:02.8]} 14. a4
{[%clk 0:02:28.1]} 14... Nbd7 {[%clk 0:01:59.6]} 15. Rfe1 {[%clk 0:02:11.6]}
15... Ne5 {[%clk 0:01:30.1]} 16. Nh4 {[%clk 0:01:51.8]} 16... Ng6 {[%clk
0:01:18.4]} 17. Nxg6 {[%clk 0:01:51.6]} 17... hxg6 {[%clk 0:01:18.2]} 18. e4
{[%clk 0:01:50.8]} 18... Re8 {[%clk 0:01:12.1]} 19. Qd2 {[%clk 0:01:45]} 19...
Rab8 {[%clk 0:01:09.6]} 20. f4 {[%clk 0:01:42]} 20... b5 {[%clk 0:00:52.6]} 21.
axb5 {[%clk 0:01:33.2]} 21... axb5 {[%clk 0:00:53.5]} 22. e5 {[%clk 0:01:29.6]}
22... b4 {[%clk 0:00:32]} 23. Nb5 {[%clk 0:01:12.4]} 23... dxe5 {[%clk
0:00:32.3]} 24. fxe5 {[%clk 0:01:09.6]} 24... Qd7 {[%clk 0:00:32.7]} 25. Nd6
{[%clk 0:00:53.3]} 25... Rxe5 {[%clk 0:00:32.4]} 26. Rxe5 {[%clk 0:00:54]} 26...
Qxd6 {[%clk 0:00:32.8]} 27. Rde1 {[%clk 0:00:54.1]} 27... Rd8 {[%clk 0:00:29.1]}
28. Qf4 {[%clk 0:00:43.5]} 28... Rc8 {[%clk 0:00:18.2]} 29. Re8+ {[%clk
0:00:18.4]} 29... Rxe8 {[%clk 0:00:18.3]} 30. Qxd6 {[%clk 0:00:18.7]} 30...
Rxe1+ {[%clk 0:00:18.8]} 31. Kf2 {[%clk 0:00:19.3]} 31... Re8 {[%clk 0:00:18.6]}
32. Bf3 {[%clk 0:00:18.6]} 32... c4 {[%clk 0:00:16.3]} 33. Qxb4 {[%clk
0:00:14.1]} 33... Bxd5 {[%clk 0:00:16.1]} 34. Bxd5 {[%clk 0:00:13.7]} 34... Nxd5
{[%clk 0:00:17]} 35. Qxc4 {[%clk 0:00:14.1]} 35... Nf6 {[%clk 0:00:14.4]} 36.
Qd4 {[%clk 0:00:10.8]} 36... Ne4+ {[%clk 0:00:10.4]} 37. Kg2 {[%clk 0:00:10.7]}
37... f5 {[%clk 0:00:10]} 38. b4 {[%clk 0:00:10.2]} 38... Rc8 {[%clk 0:00:08.7]}
39. Qd3 {[%clk 0:00:09.6]} 39... Rb8 {[%clk 0:00:07.7]} 40. b5 {[%clk
0:00:09.4]} 40... Kh7 {[%clk 0:00:07.1]} 41. h4 {[%clk 0:00:07.1]} 41... Rb7
{[%clk 0:00:05.8]} 42. h5 {[%clk 0:00:03.4]} 42... gxh5 {[%clk 0:00:05.3]} 43.
Qd5 {[%clk 0:00:03.7]} 43... Re7 {[%clk 0:00:04.7]} 44. b6 {[%clk 0:00:03.3]}
44... g6 {[%clk 0:00:03.6]} 45. b7 {[%clk 0:00:03.4]} 45... Nf6 {[%clk
0:00:03.5]} 46. Qb3 {[%clk 0:00:02.7]} 46... Nd7 {[%clk 0:00:02.5]} 47. Qb4
{[%clk 0:00:02.4]} 47... Rf7 {[%clk 0:00:02.5]} 48. Qd6 {[%clk 0:00:02.7]} 48...
Kg7 {[%clk 0:00:02.9]} 49. Qd4+ {[%clk 0:00:02.8]} 49... Kh7 {[%clk 0:00:02.7]}
50. Kf2 {[%clk 0:00:02.6]} 50... Kh6 {[%clk 0:00:01.8]} 51. Qe3+ {[%clk
0:00:02.6]} 51... Kh7 {[%clk 0:00:02]} 52. Qe8 {[%clk 0:00:03]} 52... Kg7 {[%clk
0:00:02.5]} 53. Qd8 {[%clk 0:00:03.3]} 53... Kh7 {[%clk 0:00:02.5]} 54. Qc7
{[%clk 0:00:03.8]} 54... Kg7 {[%clk 0:00:02.9]} 55. Kg1 {[%clk 0:00:04.4]} 55...
Kh7 {[%clk 0:00:03.4]} 56. b8=Q {[%clk 0:00:04.3]} 56... Nxb8 {[%clk 0:00:03.1]}
57. Qxf7+ {[%clk 0:00:04.9]} 1-0

[Event "*** Titled Tuesday Blitz"]
[Site "Chess.com"]
[Date "2020.10.20"]
[Round "7"]
[White "Borsuk_Konstantin"]
[Black "Lagmantr"]
[Result "1-0"]
[WhiteElo "2580"]
[BlackElo "2713"]
[TimeControl "180+1"]
[EndTime "11:20:58 PDT"]
[Termination "Borsuk_Konstantin won by checkmate"]

1. d4 {[%clk 0:03:00.9]} 1... Nf6 {[%clk 0:01:18.9]} 2. c4 {[%clk 0:03:00.6]}
2... c5 {[%clk 0:01:19.3]} 3. d5 {[%clk 0:03:00.4]} 3... g6 {[%clk 0:01:16.5]}
4. Nc3 {[%clk 0:02:59.9]} 4... Bg7 {[%clk 0:01:17.4]} 5. e4 {[%clk 0:02:59.8]}
5... O-O {[%clk 0:01:18.3]} 6. h3 {[%clk 0:02:58.2]} 6... d6 {[%clk 0:01:18.6]}
7. Nf3 {[%clk 0:02:57.6]} 7... e6 {[%clk 0:01:19.2]} 8. Bd3 {[%clk 0:02:58.1]}
8... exd5 {[%clk 0:01:19.7]} 9. exd5 {[%clk 0:02:58.8]} 9... Re8+ {[%clk
0:01:19.8]} 10. Be3 {[%clk 0:02:59.4]} 10... a6 {[%clk 0:01:18.6]} 11. a4 {[%clk
0:02:57]} 11... Nbd7 {[%clk 0:01:15.7]} 12. O-O {[%clk 0:02:56.1]} 12... Ne5
{[%clk 0:01:13.7]} 13. Nxe5 {[%clk 0:02:55]} 13... Rxe5 {[%clk 0:01:14]} 14. Bf4
{[%clk 0:02:52.5]} 14... Rh5 {[%clk 0:01:13.9]} 15. Be2 {[%clk 0:02:45.4]} 15...
Rh4 {[%clk 0:01:11.4]} 16. Bg5 {[%clk 0:02:38.5]} 16... Rd4 {[%clk 0:01:11.3]}
17. Qb3 {[%clk 0:02:36.1]} 17... h6 {[%clk 0:01:10.7]} 18. Be3 {[%clk
0:02:35.4]} 18... Rh4 {[%clk 0:01:09.8]} 19. Rfe1 {[%clk 0:02:24.7]} 19... g5
{[%clk 0:01:06.7]} 20. Bf1 {[%clk 0:02:23.2]} 20... g4 {[%clk 0:00:57.9]} 21. g3
{[%clk 0:02:22]} 21... Rxh3 {[%clk 0:00:58.3]} 22. Bxh3 {[%clk 0:02:21.6]} 22...
gxh3 {[%clk 0:00:59.2]} 23. f3 {[%clk 0:02:20.2]} 23... Bf5 {[%clk 0:00:51.9]}
24. Kh2 {[%clk 0:02:17.7]} 24... Qd7 {[%clk 0:00:49]} 25. Bf2 {[%clk 0:02:14.3]}
25... Bd3 {[%clk 0:00:40.2]} 26. Re3 {[%clk 0:02:03.1]} 26... Qf5 {[%clk
0:00:39.1]} 27. Bg1 {[%clk 0:01:34.1]} 27... Nh5 {[%clk 0:00:26.5]} 28. Ne4
{[%clk 0:01:31.6]} 28... Bxe4 {[%clk 0:00:23.3]} 29. Rxe4 {[%clk 0:01:31.7]}
29... Be5 {[%clk 0:00:17]} 30. Bf2 {[%clk 0:00:58.5]} 30... Kh8 {[%clk
0:00:14.9]} 31. Qe3 {[%clk 0:00:55.5]} 31... Rg8 {[%clk 0:00:14.3]} 32. Qxh6+
{[%clk 0:00:55.3]} 32... Qh7 {[%clk 0:00:13.6]} 33. Qxh7+ {[%clk 0:00:54.2]}
33... Kxh7 {[%clk 0:00:14.5]} 34. Kxh3 {[%clk 0:00:53]} 34... f5 {[%clk
0:00:09.8]} 35. Rh4 {[%clk 0:00:52.1]} 35... Kg6 {[%clk 0:00:09.8]} 36. Rb1
{[%clk 0:00:49.6]} 36... Bf6 {[%clk 0:00:10.1]} 37. Rxh5 {[%clk 0:00:45.3]}
37... Kxh5 {[%clk 0:00:11]} 38. b4 {[%clk 0:00:45.6]} 38... Bd4 {[%clk
0:00:11.4]} 39. Bxd4 {[%clk 0:00:43.2]} 39... cxd4 {[%clk 0:00:12.3]} 40. Rd1
{[%clk 0:00:43.4]} 40... Re8 {[%clk 0:00:12.8]} 41. Rxd4 {[%clk 0:00:43.4]}
41... Re3 {[%clk 0:00:13.3]} 42. Kg2 {[%clk 0:00:39.8]} 42... Rc3 {[%clk
0:00:13.1]} 43. a5 {[%clk 0:00:20.8]} 43... Kg5 {[%clk 0:00:12.1]} 44. c5 {[%clk
0:00:15.9]} 44... dxc5 {[%clk 0:00:07.9]} 45. d6 {[%clk 0:00:11.4]} 45... cxd4
{[%clk 0:00:06.2]} 46. d7 {[%clk 0:00:11.6]} 46... Kf6 {[%clk 0:00:05.2]} 47.
d8=Q+ {[%clk 0:00:10.7]} 47... Ke5 {[%clk 0:00:06.1]} 48. Qe7+ {[%clk
0:00:07.1]} 48... Kd5 {[%clk 0:00:06.5]} 49. Qd7+ {[%clk 0:00:07.3]} 49... Kc4
{[%clk 0:00:07.2]} 50. Qxb7 {[%clk 0:00:06.7]} 50... d3 {[%clk 0:00:07.2]} 51.
Qxa6+ {[%clk 0:00:07.3]} 51... Kxb4 {[%clk 0:00:07.4]} 52. Qb6+ {[%clk
0:00:07.3]} 52... Ka3 {[%clk 0:00:07.6]} 53. a6 {[%clk 0:00:07.6]} 53... Rc2+
{[%clk 0:00:07.2]} 54. Kh3 {[%clk 0:00:07]} 54... d2 {[%clk 0:00:07.7]} 55. Qd6+
{[%clk 0:00:06.9]} 55... Kb2 {[%clk 0:00:07.4]} 56. a7 {[%clk 0:00:07.5]} 56...
Rc1 {[%clk 0:00:07.4]} 57. a8=Q {[%clk 0:00:06.9]} 57... d1=Q {[%clk 0:00:06.3]}
58. Qaa3+ {[%clk 0:00:07.4]} 58... Kb1 {[%clk 0:00:06.2]} 59. Qdb4+ {[%clk
0:00:07.3]} 59... Kc2 {[%clk 0:00:05.4]} 60. Qbb2# {[%clk 0:00:07.3]} 1-0